bitfinex-derivatives/quotes_SOLF0:USTF0_20251026
["timestamp","ask_amount","ask_price","bid_price","bid_amount"]
[1761454271328,1.15,193.35,193.32,65.04]
[1761454272135,1.15,193.35,193.32,62.22]
[1761454272525,1.15,193.35,193.33,2.82]
[1761454273636,1.15,193.35,193.33,65.02]
[1761454273835,3.89835183,193.34,193.33,65.02]
[1761454275034,3.89835183,193.34,193.26,4.6564]
[1761454275243,1.16,193.33,193.29,2.82]
[1761454279639,1.50693848,193.36,193.29,2.82]
[1761454279839,5.06212491,193.35,193.29,2.82]
[1761454280039,5.06212491,193.34,193.29,2.82]
[1761454280240,3.90212491,193.33,193.29,2.82]
[1761454280441,1.16,193.34,193.29,2.82]
[1761454280642,3.90293203,193.33,193.29,2.82]
[1761454280841,1.16,193.34,193.29,2.82]
[1761454281139,3.90293203,193.33,193.29,2.82]
[1761454281441,1.16,193.34,193.29,2.82]
[1761454281741,3.90388958,193.33,193.29,2.82]
[1761454281942,1.16,193.34,193.29,2.82]
[1761454282241,3.90388958,193.33,193.29,2.82]
[1761454282442,1.16,193.34,193.29,2.82]
[1761454282743,3.90505376,193.33,193.29,2.82]
[1761454282943,1.16,193.34,193.29,2.82]
[1761454283243,3.90505376,193.33,193.29,2.82]
[1761454283446,1.16,193.34,193.29,2.82]
[1761454283745,3.9053485,193.33,193.29,2.82]
[1761454283946,1.16,193.34,193.29,2.82]
[1761454284143,5.0653485,193.33,193.29,2.82]
[1761454284339,1.16,193.33,193.29,2.82]
[1761454287540,4.83590007,193.37,193.29,2.82]
[1761454287839,1.16,193.35,193.29,2.82]
[1761454288047,5.06660225,193.34,193.29,2.82]
[1761454288246,3.90660225,193.33,193.29,2.82]
[1761454288447,1.16,193.34,193.29,2.82]
[1761454288648,3.9067498,193.33,193.29,2.82]
[1761454288849,1.16,193.34,193.29,2.82]
[1761454289048,3.90674785,193.33,193.29,2.82]
[1761454289248,1.16,193.34,193.29,2.82]
[1761454289448,3.90691541,193.33,193.29,2.82]
[1761454289651,1.16,193.34,193.29,2.82]
[1761454289846,3.90691606,193.33,193.29,2.82]
[1761454290046,1.16,193.34,193.29,2.82]
[1761454290249,3.90691606,193.33,193.29,2.82]
[1761454290451,3.90691606,193.32,193.3,2.82]
[1761454290656,1.16,193.34,193.3,2.82]
[1761454290852,3.90722158,193.33,193.3,2.82]
[1761454291054,3.90722158,193.32,193.3,2.82]
[1761454291256,1.16,193.34,193.3,2.82]
[1761454291551,3.90744499,193.33,193.3,2.82]
[1761454291752,3.90744499,193.32,193.3,2.82]
[1761454291949,1.16,193.34,193.3,2.82]
[1761454292156,3.90739076,193.33,193.3,2.82]
[1761454292348,3.90739076,193.32,193.3,2.82]
[1761454292654,1.16,193.34,193.3,2.82]
[1761454292851,3.9076928,193.33,193.3,2.82]
[1761454293053,3.9076928,193.32,193.3,2.82]
[1761454293252,1.16,193.34,193.3,2.82]
[1761454293453,3.90791387,193.33,193.3,2.82]
[1761454293658,3.90791387,193.32,193.3,2.82]
[1761454293849,1.16,193.34,193.3,2.82]
[1761454294154,3.9079681,193.33,193.3,2.82]
[1761454294363,3.9079681,193.32,193.3,2.82]
[1761454294558,1.16,193.34,193.3,2.82]
[1761454294749,3.90828261,193.33,193.3,2.82]
[1761454294945,3.90828261,193.32,193.3,2.82]
[1761454295149,1.16,193.34,193.3,2.82]
[1761454295349,3.90860441,193.33,193.3,2.82]
[1761454295556,3.90860441,193.32,193.3,2.82]
[1761454295756,1.16,193.34,193.3,2.82]
[1761454295948,3.90863953,193.33,193.3,2.82]
[1761454296149,3.90863953,193.32,193.3,2.82]
[1761454296353,1.16,193.34,193.3,2.82]
[1761454296555,3.9090594,193.33,193.3,2.82]
[1761454296755,3.9090594,193.32,193.3,2.82]
[1761454296955,1.16,193.34,193.3,2.82]
[1761454297253,3.9090594,193.33,193.3,2.82]
[1761454297557,3.9090594,193.32,193.3,2.82]
[1761454297754,1.16,193.34,193.3,2.82]
[1761454297955,3.90956396,193.33,193.3,2.82]
[1761454298153,3.90956396,193.32,193.3,2.82]
[1761454298355,1.16,193.34,193.3,2.82]
[1761454298552,5.0696725,193.33,193.3,2.82]
[1761454298760,3.9096725,193.32,193.3,2.82]
[1761454299057,1.16,193.33,193.3,2.82]
[1761454299254,3.90971276,193.32,193.3,2.82]
[1761454299454,1.16,193.33,193.3,2.82]
[1761454299661,3.90971341,193.32,193.3,2.82]
[1761454299958,1.16,193.33,193.3,2.82]
[1761454300159,3.90971341,193.32,193.3,2.82]
[1761454300361,1.16,193.33,193.3,2.82]
[1761454300559,3.9076157,193.32,193.3,2.82]
[1761454300760,1.16,193.33,193.3,2.82]
[1761454300960,3.9076157,193.32,193.3,2.82]
[1761454301161,1.16,193.33,193.3,2.82]
[1761454301360,3.90766226,193.32,193.3,2.82]
[1761454301562,1.16,193.33,193.3,2.82]
[1761454301864,3.90765928,193.32,193.3,2.82]
[1761454302060,1.16,193.33,193.3,2.82]
[1761454302262,3.90770933,193.32,193.3,2.82]
[1761454302561,1.16,193.33,193.3,2.82]
[1761454302763,3.90770437,193.32,193.3,2.82]
[1761454302957,1.16,193.33,193.3,2.82]
[1761454303256,3.90770437,193.32,193.3,2.82]
[1761454303462,1.16,193.33,193.3,2.82]
[1761454303664,3.90775106,193.32,193.3,2.82]
[1761454303852,1.16,193.33,193.3,2.82]
[1761454304057,1.16,193.31,193.19,2.87]
[1761454304361,1.16,193.31,193.27,2.87]
[1761454304562,1.16,193.31,193.28,62.18]
[1761454304762,1.16,193.31,193.28,65.05]
[1761454305163,1.16,193.31,193.28,62.18]
[1761454305359,1.16,193.31,193.29,2.87]
[1761454309970,1.16,193.31,193.29,65.05]
[1761454313063,1.16,193.31,193.3,2.87]
[1761454313264,5.06768775,193.31,193.3,2.87]
[1761454320278,3.90768775,193.31,193.3,2.87]
[1761454320874,3.90768775,193.31,193.26,2.61]
[1761454321077,1.16,193.29,193.26,2.61]
[1761454322677,1.16,193.27,193.19,2.61]
[1761454322875,5.06769222,193.26,193.19,2.61]
[1761454323076,1.16,193.3,193.21,2.61]
[1761454323372,1.16,193.28,193.21,2.61]
[1761454323579,1.16,193.26,193.21,2.61]
[1761454328090,1.16,193.26,193.23,2.61]
[1761454328379,1.16,193.26,193.2,2.71]
[1761454328687,1.16,193.26,193.2,64.91]
[1761454334280,1.16,193.26,193.21,2.71]
[1761454364416,5.07959373,193.25,193.21,2.71]
[1761454364617,1.16,193.25,193.21,2.71]
[1761454368317,3.92314404,193.24,193.21,2.71]
[1761454368521,1.16,193.25,193.21,2.71]
[1761454368712,3.92314404,193.24,193.21,2.71]
[1761454369016,1.16,193.27,193.21,2.71]
[1761454369314,5.08314404,193.26,193.21,2.71]
[1761454369617,5.08314404,193.25,193.21,2.71]
[1761454369818,3.92314404,193.24,193.23,4.2381615]
[1761454370317,1.16,193.25,193.23,4.2381615]
[1761454370518,1.16,193.25,193.24,2.73]
[1761454370817,3.92344287,193.25,193.24,2.73]
[1761454371412,5.08344287,193.25,193.24,2.73]
[1761454372118,3.92344287,193.25,193.24,2.73]
[1761454373307,6.00601833,193.29,193.24,2.73]
[1761454373308,1.16,193.29,193.24,2.73]
[1761454373514,3.92390396,193.28,193.27,4.2381615]
[1761454383125,3.92390396,193.28,193.27,2.73]
[1761454383326,5.07390396,193.28,193.27,2.73]
[1761454387226,1.15,193.3,193.27,2.73]
[1761454387423,3.91876123,193.29,193.27,2.73]
[1761454387624,1.15,193.3,193.27,2.73]
[1761454387824,3.91876057,193.29,193.27,2.73]
[1761454388025,1.15,193.3,193.27,2.73]
[1761454388224,3.91876057,193.29,193.27,2.73]
[1761454388523,1.15,193.3,193.27,2.73]
[1761454388728,3.9185506,193.29,193.27,2.73]
[1761454388923,1.15,193.3,193.27,2.73]
[1761454389124,3.9185506,193.29,193.27,2.73]
[1761454389325,1.15,193.3,193.27,2.73]
[1761454389629,3.9183745,193.29,193.27,2.73]
[1761454389828,1.15,193.3,193.27,2.73]
[1761454390024,3.91842894,193.29,193.27,2.73]
[1761454390225,1.16,193.29,193.27,2.73]
[1761454391131,1.16,193.29,193.26,1.5081615]
[1761454391432,1.16,193.27,193.25,1.5081615]
[1761454406253,1.16,193.3,193.26,2.65]
[1761454406435,3.91320701,193.29,193.27,1.5081615]
[1761454406640,3.91320701,193.28,193.27,1.5081615]
[1761454407148,3.91320701,193.28,193.27,4.1581615]
[1761454407543,3.91320701,193.28,193.27,2.65]
[1761454407841,5.07320701,193.28,193.27,1.5081615]
[1761454408641,3.91320701,193.28,193.27,4.1581615]
[1761454416148,3.91320701,193.28,193.27,2.65]
[1761454422246,5.07320701,193.28,193.26,4.1981615]
[1761454422446,3.91320701,193.27,193.26,4.1981615]
[1761454423159,3.91320701,193.27,193.26,1.5081615]
[1761454423456,1.16,193.26,193.24,2.69]
[1761454425246,1.16,193.26,193.23,1.5081615]
[1761454425443,3.91364031,193.25,193.23,1.5081615]
[1761454425649,1.16,193.25,193.23,4.1981615]
[1761454425846,1.16,193.25,193.2,1.5081615]
[1761454426241,1.16,193.25,193.21,2.69]
[1761454427954,5.07358527,193.24,193.21,2.69]
[1761454428146,1.16,193.24,193.21,2.69]
[1761454437461,1.16,193.28,193.21,2.69]
[1761454437764,5.07136921,193.27,193.21,2.69]
[1761454437962,5.07136921,193.26,193.21,2.69]
[1761454438151,3.91136921,193.25,193.21,2.69]
[1761454438350,3.91136921,193.24,193.21,2.69]
[1761454438654,1.16,193.26,193.21,2.69]
[1761454438962,3.91115902,193.25,193.21,2.69]
[1761454439163,3.91115902,193.24,193.21,2.69]
[1761454439464,1.16,193.26,193.21,2.69]
[1761454439763,3.9109735,193.25,193.21,2.69]
[1761454439963,3.9109735,193.24,193.21,2.69]
[1761454440165,1.16,193.26,193.21,2.69]
[1761454440365,3.91091284,193.25,193.21,2.69]
[1761454440668,3.91091284,193.24,193.21,2.69]
[1761454440865,1.16,193.26,193.21,2.69]
[1761454441162,3.91091284,193.25,193.21,2.69]
[1761454441362,1.16,193.26,193.21,2.69]
[1761454441667,3.9107472,193.25,193.21,2.69]
[1761454441864,1.16,193.25,193.21,2.69]
[1761454456174,3.90989787,193.24,193.21,2.69]
[1761454456366,1.16,193.25,193.21,2.69]
[1761454456564,5.06997515,193.24,193.21,2.69]
[1761454456764,1.16,193.24,193.21,2.69]
[1761454459372,4.8407621,193.29,193.21,2.69]
[1761454459572,1.16,193.27,193.21,2.69]
[1761454459879,1.16,193.25,193.21,2.69]
[1761454460174,3.91053812,193.24,193.21,2.69]
[1761454460375,1.16,193.25,193.21,2.69]
[1761454460575,3.91078021,193.24,193.21,2.69]
[1761454460775,1.16,193.25,193.21,2.69]
[1761454460975,3.91078021,193.24,193.21,2.69]
[1761454461274,1.16,193.25,193.21,2.69]
[1761454461476,3.91105733,193.24,193.21,2.69]
[1761454461678,1.16,193.25,193.21,2.69]
[1761454461977,3.91105733,193.24,193.21,2.69]
[1761454462177,1.16,193.25,193.21,2.69]
[1761454462373,3.91137067,193.24,193.21,2.69]
[1761454462574,1.16,193.24,193.21,2.69]
[1761454469380,3.91519873,193.23,193.21,2.69]
[1761454469576,1.16,193.24,193.21,2.69]
[1761454469777,3.91519873,193.23,193.21,2.69]
[1761454469976,1.16,193.24,193.21,2.69]
[1761454470183,3.91519873,193.23,193.21,2.69]
[1761454470379,1.16,193.24,193.21,2.69]
[1761454470583,3.9160703,193.23,193.21,2.69]
[1761454470800,1.16,193.24,193.21,2.69]
[1761454471100,3.9160703,193.23,193.21,2.69]
[1761454471399,1.16,193.24,193.21,2.69]
[1761454471600,3.91648347,193.23,193.21,2.69]
[1761454471801,1.16,193.24,193.21,2.69]
[1761454471996,3.91648347,193.23,193.21,2.69]
[1761454472197,1.16,193.24,193.21,2.69]
[1761454472502,3.9172033,193.23,193.21,2.69]
[1761454472700,1.16,193.24,193.21,2.69]
[1761454472900,3.9172033,193.23,193.21,2.69]
[1761454473095,1.16,193.24,193.21,2.69]
[1761454473299,3.91720565,193.23,193.21,2.69]
[1761454473498,1.16,193.24,193.21,2.69]
[1761454473693,3.91731591,193.23,193.21,2.69]
[1761454473893,1.16,193.24,193.21,2.69]
[1761454474095,3.91731591,193.23,193.21,2.69]
[1761454474395,1.16,193.24,193.21,2.69]
[1761454474595,3.91731486,193.23,193.21,2.69]
[1761454474802,1.16,193.24,193.21,2.69]
[1761454475000,3.91731486,193.23,193.21,2.69]
[1761454475204,1.16,193.24,193.21,2.69]
[1761454475405,3.91731429,193.23,193.21,2.69]
[1761454475608,1.16,193.24,193.21,2.69]
[1761454476906,3.91731224,193.23,193.21,2.69]
[1761454478011,1.16,193.24,193.21,2.69]
[1761454478901,1.16,193.3,193.21,2.69]
[1761454479095,1.16,193.28,193.21,2.69]
[1761454479297,1.16,193.27,193.21,2.69]
[1761454480105,3.91730826,193.26,193.21,2.69]
[1761454480302,5.07730826,193.25,193.21,2.69]
[1761454480508,3.91731036,193.24,193.21,2.69]
[1761454480699,3.91731036,193.23,193.21,2.69]
[1761454480904,1.16,193.25,193.21,2.69]
[1761454481100,3.91114121,193.24,193.21,2.69]
[1761454481300,3.91114121,193.23,193.21,2.69]
[1761454481510,1.16,193.25,193.21,2.69]
[1761454481711,3.91114391,193.24,193.21,2.69]
[1761454481914,3.91114391,193.23,193.21,2.69]
[1761454482099,1.16,193.25,193.21,2.69]
[1761454482304,3.91114711,193.24,193.21,2.69]
[1761454482508,3.91114711,193.23,193.21,2.69]
[1761454482704,1.16,193.24,193.21,2.69]
[1761454482904,3.91114775,193.23,193.21,2.69]
[1761454483110,1.16,193.24,193.21,2.69]
[1761454483407,3.91115117,193.23,193.21,2.69]
[1761454483609,1.16,193.24,193.21,2.69]
[1761454483804,3.91115624,193.23,193.21,2.69]
[1761454484005,1.16,193.24,193.21,2.69]
[1761454484311,3.91115754,193.23,193.21,2.69]
[1761454484511,1.16,193.24,193.21,2.69]
[1761454484703,3.91116668,193.23,193.21,2.69]
[1761454484905,1.16,193.24,193.21,2.69]
[1761454485106,3.91116732,193.23,193.21,2.69]
[1761454485404,1.16,193.24,193.21,2.69]
[1761454485705,3.91117093,193.23,193.21,2.69]
[1761454485905,1.16,193.24,193.21,2.69]
[1761454486106,3.91117093,193.23,193.21,2.69]
[1761454486308,1.16,193.24,193.21,2.69]
[1761454486508,3.91118219,193.23,193.21,2.69]
[1761454486708,1.16,193.24,193.21,2.69]
[1761454486905,3.9111809,193.23,193.21,2.69]
[1761454487114,1.16,193.24,193.21,2.69]
[1761454487313,3.91119372,193.23,193.21,2.69]
[1761454487506,1.16,193.24,193.21,2.69]
[1761454487702,3.91119372,193.23,193.21,2.69]
[1761454487908,1.16,193.24,193.21,2.69]
[1761454488107,3.91119372,193.23,193.21,2.69]
[1761454488307,1.16,193.24,193.21,2.69]
[1761454488508,3.91120535,193.23,193.21,2.69]
[1761454488708,1.16,193.24,193.21,2.69]
[1761454488909,3.91120535,193.23,193.21,2.69]
[1761454489109,1.16,193.24,193.21,2.69]
[1761454489407,3.91121777,193.23,193.21,2.69]
[1761454489707,1.16,193.24,193.21,2.69]
[1761454489908,3.91121777,193.23,193.21,2.69]
[1761454490203,1.16,193.24,193.21,2.69]
[1761454490406,3.91123239,193.23,193.21,2.69]
[1761454490614,1.16,193.24,193.21,2.69]
[1761454490916,3.91123239,193.23,193.21,2.69]
[1761454491209,1.16,193.24,193.21,2.69]
[1761454491415,3.91125123,193.23,193.21,2.69]
[1761454491615,1.16,193.24,193.21,2.69]
[1761454491916,3.91125123,193.23,193.21,2.69]
[1761454492107,1.16,193.24,193.21,2.69]
[1761454492406,3.91141286,193.23,193.21,2.69]
[1761454492607,1.16,193.24,193.21,2.69]
[1761454492808,3.91141286,193.23,193.21,2.69]
[1761454493108,1.16,193.24,193.21,2.69]
[1761454493309,3.91150086,193.23,193.21,2.69]
[1761454493509,1.16,193.24,193.21,2.69]
[1761454493708,3.91150086,193.23,193.21,2.69]
[1761454493914,1.16,193.24,193.21,2.69]
[1761454494119,3.91150086,193.23,193.21,2.69]
[1761454494416,1.16,193.24,193.21,2.69]
[1761454494612,3.91150207,193.23,193.21,2.69]
[1761454494813,1.16,193.24,193.21,2.69]
[1761454495012,3.91150207,193.23,193.21,2.69]
[1761454495214,1.16,193.24,193.21,2.69]
[1761454495414,3.91150345,193.23,193.21,2.69]
[1761454495614,1.16,193.24,193.21,2.69]
[1761454495816,3.91150345,193.23,193.21,2.69]
[1761454496019,1.16,193.24,193.21,2.69]
[1761454496219,3.91150345,193.23,193.21,2.69]
[1761454496420,1.16,193.24,193.21,2.69]
[1761454496620,3.91150457,193.23,193.21,2.69]
[1761454496815,1.16,193.24,193.21,2.69]
[1761454497015,3.91150457,193.23,193.21,2.69]
[1761454497314,1.16,193.24,193.21,2.69]
[1761454497515,3.91150588,193.23,193.21,2.69]
[1761454497715,1.16,193.24,193.21,2.69]
[1761454497916,3.91150588,193.23,193.21,2.69]
[1761454498214,1.16,193.24,193.21,2.69]
[1761454498414,3.91150547,193.23,193.21,2.69]
[1761454498616,1.16,193.24,193.21,2.69]
[1761454498818,3.91150547,193.23,193.21,2.69]
[1761454499018,1.16,193.24,193.21,2.69]
[1761454499218,3.91150547,193.23,193.21,2.69]
[1761454499417,1.16,193.24,193.21,2.69]
[1761454499612,3.91150507,193.23,193.21,2.69]
[1761454499816,1.16,193.24,193.21,2.69]
[1761454500022,3.91150507,193.23,193.21,2.69]
[1761454500218,1.16,193.24,193.21,2.69]
[1761454500419,3.91150485,193.23,193.21,2.69]
[1761454500714,1.16,193.24,193.21,2.69]
[1761454500915,3.91150485,193.23,193.21,2.69]
[1761454501111,1.16,193.24,193.21,2.69]
[1761454501323,3.91150459,193.23,193.21,2.69]
[1761454501622,1.16,193.24,193.21,2.69]
[1761454501820,3.91150454,193.23,193.21,2.69]
[1761454502020,1.16,193.24,193.21,2.69]
[1761454502319,3.91150454,193.23,193.21,2.69]
[1761454502522,1.16,193.24,193.21,2.69]
[1761454502817,1.16,193.24,193.2,1.50797273]
[1761454502818,3.91150416,193.23,193.2,1.50797273]
[1761454503025,1.16,193.21,193.18,2.63]
[1761454504025,1.16,193.19,193.15,2.63]
[1761454505819,3.90692938,193.18,193.15,2.63]
[1761454506013,1.16,193.2,193.15,2.63]
[1761454514126,1.16,193.2,193.17,1.50797273]
[1761454514334,1.16,193.2,193.17,4.12797273]
[1761454518742,1.16,193.2,193.17,1.50797273]
[1761454520243,1.16,193.2,193.15,4.12797273]
[1761454520633,1.16,193.2,193.16,2.62]
[1761454521340,1.16,193.2,193.13,4.12797273]
[1761454521541,3.89339987,193.19,193.13,4.12797273]
[1761454521740,1.16,193.18,193.14,2.62]
[1761454528350,1.16,193.18,193.15,1.50797273]
[1761454528549,1.16,193.18,193.15,4.12797273]
[1761454528946,1.16,193.18,193.16,2.62]
[1761454548257,3.90120284,193.17,193.16,2.62]
[1761454563766,1.16,193.16,193.13,2.6]
[1761454564170,3.90316588,193.15,193.13,2.6]
[1761454564372,1.16,193.16,193.13,2.6]
[1761454564674,3.90310533,193.15,193.13,2.6]
[1761454564972,1.16,193.16,193.13,2.6]
[1761454565166,3.90310533,193.15,193.13,2.6]
[1761454565366,1.16,193.16,193.13,2.6]
[1761454565665,3.90290442,193.15,193.13,2.6]
[1761454565866,1.16,193.16,193.13,2.6]
[1761454566172,3.90290442,193.15,193.13,2.6]
[1761454566471,1.16,193.16,193.13,2.6]
[1761454566670,3.90271162,193.15,193.13,2.6]
[1761454566872,1.16,193.16,193.13,2.6]
[1761454567071,3.90271162,193.15,193.13,2.6]
[1761454567372,1.16,193.16,193.13,2.6]
[1761454567671,3.90235796,193.15,193.13,2.6]
[1761454567872,1.16,193.16,193.13,2.6]
[1761454568072,3.90235796,193.15,193.13,2.6]
[1761454568271,1.16,193.16,193.13,2.6]
[1761454568473,3.90210283,193.15,193.13,2.6]
[1761454568675,1.16,193.16,193.13,2.6]
[1761454568974,3.90210283,193.15,193.13,2.6]
[1761454569172,1.16,193.16,193.13,2.6]
[1761454570074,3.90197257,193.15,193.13,2.6]
[1761454570278,1.16,193.16,193.13,2.6]
[1761454570578,3.90163787,193.15,193.13,2.6]
[1761454570775,1.16,193.16,193.13,2.6]
[1761454570980,3.91033305,193.15,193.13,2.6]
[1761454571278,1.16,193.16,193.13,2.6]
[1761454571475,3.90999451,193.15,193.13,2.6]
[1761454571773,1.16,193.16,193.13,2.6]
[1761454571975,3.90999451,193.15,193.13,2.6]
[1761454572167,1.16,193.16,193.13,2.6]
[1761454572369,3.90970848,193.15,193.13,2.6]
[1761454572568,1.16,193.16,193.13,2.6]
[1761454572768,3.90970839,193.15,193.13,2.6]
[1761454573069,1.16,193.16,193.13,2.6]
[1761454573262,3.90970839,193.15,193.13,2.6]
[1761454573466,1.16,193.16,193.13,2.6]
[1761454573762,3.90981708,193.15,193.13,2.6]
[1761454573967,1.16,193.16,193.13,2.6]
[1761454574168,3.90981708,193.15,193.13,2.6]
[1761454574368,1.16,193.16,193.13,2.6]
[1761454574578,3.90960897,193.15,193.13,2.6]
[1761454574771,1.16,193.16,193.13,2.6]
[1761454574971,3.90960897,193.15,193.13,2.6]
[1761454575177,1.16,193.16,193.13,2.6]
[1761454575372,5.06943184,193.15,193.13,2.6]
[1761454575577,1.16,193.15,193.12,2.88]
[1761454575977,1.16,193.17,193.12,2.88]
[1761454576167,3.90919143,193.16,193.12,2.88]
[1761454576373,3.90919143,193.15,193.12,2.88]
[1761454576574,1.16,193.16,193.12,2.88]
[1761454576777,5.0688695,193.15,193.12,2.88]
[1761454576976,1.16,193.15,193.12,2.88]
[1761454577890,98.81878443,193.21,193.12,2.88]
[1761454578181,3.90943033,193.2,193.13,2.88]
[1761454578478,3.90943033,193.19,193.13,2.88]
[1761454578682,98.81878443,193.21,193.13,2.88]
[1761454578683,1.16,193.2,193.13,2.88]
[1761454578876,5.06893641,193.19,193.15,2.88]
[1761454579071,3.90886118,193.18,193.15,2.88]
[1761454579280,1.16,193.2,193.15,2.88]
[1761454579481,1.16,193.18,193.15,2.88]
[1761454579673,3.90876921,193.17,193.15,2.88]
[1761454579980,1.16,193.18,193.15,2.88]
[1761454580176,3.9086194,193.17,193.15,2.88]
[1761454580383,1.16,193.18,193.15,2.88]
[1761454580683,3.90868087,193.17,193.15,2.88]
[1761454580881,1.16,193.18,193.15,2.88]
[1761454581072,5.06850197,193.17,193.15,2.88]
[1761454581381,1.16,193.17,193.15,2.88]
[1761454581870,1.16,193.19,193.15,2.88]
[1761454582077,5.06852818,193.18,193.15,2.88]
[1761454582276,3.90852818,193.17,193.15,2.88]
[1761454582478,1.16,193.18,193.15,2.88]
[1761454582774,3.90854356,193.17,193.15,2.88]
[1761454582975,1.16,193.18,193.15,2.88]
[1761454583275,3.90854356,193.17,193.15,2.88]
[1761454583480,1.16,193.18,193.15,2.88]
[1761454583673,5.0685106,193.17,193.15,2.88]
[1761454583874,1.16,193.17,193.15,2.88]
[1761454586782,3.9083488,193.16,193.15,2.88]
[1761454589578,1.16,193.17,193.15,2.88]
[1761454604689,4.37558231,193.2,193.15,2.88]
[1761454604894,3.82586192,193.19,193.15,2.88]
[1761454605091,3.82586192,193.18,193.15,2.88]
[1761454605291,98.81878443,193.21,193.15,2.88]
[1761454605292,99.97878443,193.21,193.15,2.88]
[1761454605491,4.98590476,193.2,193.15,2.88]
[1761454605688,3.82590476,193.19,193.15,2.88]
[1761454605886,3.82590476,193.18,193.15,2.88]
[1761454606088,1.16,193.2,193.15,2.88]
[1761454606288,3.82568013,193.19,193.15,2.88]
[1761454606492,3.82568013,193.18,193.15,2.88]
[1761454606693,1.16,193.2,193.15,2.88]
[1761454606897,3.82572084,193.19,193.15,2.88]
[1761454607094,3.82572084,193.18,193.15,2.88]
[1761454607394,1.16,193.2,193.15,2.88]
[1761454607694,3.82576223,193.19,193.15,2.88]
[1761454607997,3.82576223,193.18,193.15,2.88]
[1761454608191,98.81878443,193.21,193.15,2.88]
[1761454608397,3.82589467,193.2,193.15,2.88]
[1761454608592,3.82589467,193.19,193.15,2.88]
[1761454608890,98.81878443,193.21,193.15,2.88]
[1761454609093,3.82589467,193.2,193.15,2.88]
[1761454609293,3.82589467,193.19,193.15,2.88]
[1761454609498,98.81878443,193.21,193.15,2.88]
[1761454609700,3.82564328,193.2,193.15,2.88]
[1761454609900,3.82564328,193.19,193.15,2.88]
[1761454610203,98.81878443,193.21,193.15,2.88]
[1761454610399,3.82542031,193.2,193.15,2.88]
[1761454610597,3.82542031,193.19,193.15,2.88]
[1761454610798,98.81878443,193.21,193.15,2.88]
[1761454611099,3.82542031,193.2,193.15,2.88]
[1761454611297,3.82542031,193.19,193.15,2.88]
[1761454611498,98.81878443,193.21,193.15,2.88]
[1761454611697,4.98522622,193.2,193.15,2.88]
[1761454611899,3.82522622,193.19,193.15,2.88]
[1761454612096,1.16,193.2,193.15,2.88]
[1761454612298,3.82522622,193.19,193.15,2.88]
[1761454612499,1.16,193.2,193.15,2.88]
[1761454612800,3.82505814,193.19,193.15,2.88]
[1761454613102,98.81878443,193.21,193.15,2.88]